Workbook

Sheet Income statement
A2: Condensed Income Statement
A3: NOK million | B3: Q1 2013 | C3: Q2 2013 | D3: Ytd Q2 2013 | E3: Q3 2013 | F3: Ytd Q3 2013 | G3: Q4 2013 | H3: Ytd Q4 2013 | I3: Q1 2014 | J3: Q2 2014 | K3: Ytd Q2 2014 | L3: Q3 2014 | M3: Ytd Q3 2014
A4: Operating revenues | B4: 6228 | C4: =D4-B4 -> 6868 | D4: 13096 | E4: =F4-D4 -> 7508 | F4: 20604 | G4: =H4-F4 -> 8540 | H4: 29144 | I4: 7217 | J4: =K4-I4 -> 7391 | K4: 14608 | L4: =M4-K4 -> 7487 | M4: 22095
A5: Operating expenses | B5: -5510 | C5: =D5-B5 -> -6079 | D5: -11589 | E5: =F5-D5 -> -6434 | F5: -18023 | G5: =H5-F5 -> -7358 | H5: -25381 | I5: -6344 | J5: =K5-I5 -> -6521 | K5: -12865 | L5: =M5-K5 -> -6384 | M5: -19249
A6: Depreciation and write-down property, plant and equipment | B6: -207 | C6: -241 | D6: -448 | E6: -255 | F6: -703 | G6: -234 | H6: -937 | I6: -254 | J6: -237 | K6: -491 | L6: -243 | M6: -734
A7: Operating profit - EBITA | B7: =SUM(B4:B6) -> 511 | C7: 548 | D7: =SUM(D4:D6) -> 1059 | E7: 819 | F7: 1878 | G7: 948 | H7: 2826 | I7: 619 | J7: 633 | K7: 1252 | L7: 860 | M7: 2112
A8: Amortisation intangible assets | B8: -7 | C8: -3 | D8: -10 | E8: -4 | F8: -14 | G8: -7 | H8: -21 | I8: -4 | J8: -5 | K8: -9 | L8: -6 | M8: -15
A9: Other income and expenses | B9: -23 | C9: -564 | D9: -587 | E9: -193 | F9: -780 | G9: -149 | H9: -929 | I9: -32 | J9: 72 | K9: 40 | L9: -47 | M9: -7
A10: Operating profit | B10: =SUM(B7:B9) -> 481 | C10: -19 | D10: =SUM(D7:D9) -> 462 | E10: 622 | F10: 1084 | G10: 792 | H10: 1876 | I10: 583 | J10: 700 | K10: 1283 | L10: 807 | M10: 2090
A11: Profit from associates and joint ventures | B11: 93 | C11: 130 | D11: 223 | E11: 76 | F11: 299 | G11: -302 | H11: -3 | I11: 55 | J11: 192 | K11: 247 | L11: 126 | M11: 373
A12: Dividend received | B12: 120 | C12: 120 | D12: 240 | E12: 2 | F12: 242 | G12: 8 | H12: 250 | I12: 14 | J12: 22 | K12: 36 | L12: 1 | M12: 37
A13: Gains, losses and write-downs shares and financial assets | B13: 221 | C13: 352 | D13: 573 | E13: 56 | F13: 629 | G13: -6 | H13: 623 | I13: -12 | J13: 24 | K13: 12 | L13: 28 | M13: 40
A14: Financial items, net | B14: -81 | C14: -129 | D14: -210 | E14: -125 | F14: -335 | G14: -130 | H14: -465 | I14: -108 | J14: -109 | K14: -217 | L14: -91 | M14: -308
A15: Profit before taxes | B15: =SUM(B10:B14) -> 834 | C15: 454 | D15: =SUM(D10:D14) -> 1288 | E15: 631 | F15: 1919 | G15: 362 | H15: 2281 | I15: 532 | J15: 829 | K15: 1361 | L15: 871 | M15: 2232
A16: Taxes | B16: -143 | C16: -106 | D16: -249 | E16: -168 | F16: -417 | G16: -164 | H16: -581 | I16: -123 | J16: -175 | K16: -298 | L16: -207 | M16: -505
A17: Profit for the period for continued operations | B17: =SUM(B15:B16) -> 691 | C17: 348 | D17: =SUM(D15:D16) -> 1039 | E17: 463 | F17: 1502 | G17: 198 | H17: 1700 | I17: 409 | J17: 654 | K17: 1063 | L17: 664 | M17: 1727
A18: Gains/profit/loss discontinued operations | B18: -7 | C18: -1073 | D18: -1080 | E18: -12 | F18: -1092 | G18: 139 | H18: -953 | I18: 80 | J18: 76 | K18: 156 | L18: -119 | M18: 37
A19: Profit/loss for the period | B19: =SUM(B17:B18) -> 684 | C19: -725 | D19: =SUM(D17:D18) -> -41 | E19: 451 | F19: 410 | G19: 337 | H19: 747 | I19: 489 | J19: 730 | K19: 1219 | L19: 545 | M19: 1764
A20: Profit/loss attributable to non-controlling interests | B20: 14 | C20: 10 | D20: 24 | E20: 16 | F20: 40 | G20: 17 | H20: 57 | I20: 13 | J20: 3 | K20: 16 | L20: 28 | M20: 44
A21: Profit/loss attributable to owners of the parent | B21: =B19-B20 -> 670 | C21: -735 | D21: =D19-D20 -> -65 | E21: 435 | F21: =F19-F20 -> 370 | G21: 320 | H21: =H19-H20 -> 690 | I21: =I19-I20 -> 476 | J21: 727 | K21: =K19-K20 -> 1203 | L21: 517 | M21: =M19-M20 -> 1720
A24: Operating revenues
A25: NOK million | B25: Q1 2013 | C25: Q2 2013 | D25: Ytd Q2 2013 | E25: Q3 2013 | F25: Ytd Q3 2013 | G25: Q4 2013 | H25: Ytd Q4 2013 | I25: Q1 2014 | J25: Q2 2014 | K25: Ytd Q2 2014 | L25: Q3 2014 | M25: Ytd Q3 2014
A26: Orkla Group | B26: =B27+SUM(B34:B36) -> 6228 | C26: =D26-B26 -> 6868 | D26: =D27+SUM(D34:D36) -> 13096 | E26: =F26-D26 -> 7508 | F26: =F27+SUM(F34:F36) -> 20604 | G26: =H26-F26 -> 8540 | H26: =H27+SUM(H34:H36) -> 29144 | I26: =I27+SUM(I34:I36) -> 7217 | J26: =K26-I26 -> 7391 | K26: =K27+SUM(K34:K36) -> 14608 | L26: =M26-K26 -> 7487 | M26: =M27+SUM(M34:M36) -> 22095
A27: Branded Consumer Goods | B27: =SUM(B28:B33) -> 5939 | C27: =D27-B27 -> 6524 | D27: 12463 | E27: 7115 | F27: 19578 | G27: 8153 | H27: 27731 | I27: 6970 | J27: 7175 | K27: 14145 | L27: 7200 | M27: 21345
A28: Orkla Foods | B28: 1924 | C28: 2382 | D28: 4306 | E28: 2597 | F28: 6903 | G28: 2894 | H28: 9797 | I28: 2548 | J28: 2633 | K28: 5181 | L28: 2526 | M28: 7707
A29: Orkla Confectionery & Snacks | B29: 1100 | C29: 1101 | D29: 2201 | E29: 1147 | F29: 3348 | G29: 1436 | H29: 4784 | I29: 1114 | J29: 1138 | K29: 2252 | L29: 1202 | M29: 3454
A30: Orkla Home & Personal | B30: 1211 | C30: 1097 | D30: 2308 | E30: 1192 | F30: 3500 | G30: 1270 | H30: 4770 | I30: 1280 | J30: 1176 | K30: 2456 | L30: 1254 | M30: 3710
A31: Orkla International | B31: 406 | C31: 584 | D31: 990 | E31: 738 | F31: 1728 | G31: 916 | H31: 2644 | I31: 660 | J31: 686 | K31: 1346 | L31: 661 | M31: 2007
A32: Orkla Food Ingredients | B32: 1333 | C32: 1415 | D32: 2748 | E32: 1524 | F32: 4272 | G32: 1726 | H32: 5998 | I32: 1451 | J32: 1624 | K32: 3075 | L32: 1638 | M32: 4713
A33: Elimininations Branded Consumer Goods | B33: -35 | C33: -55 | D33: -90 | E33: -83 | F33: -173 | G33: -89 | H33: -262 | I33: -83 | J33: -82 | K33: -165 | L33: -81 | M33: -246
A34: Hydro Power | B34: 127 | C34: 204 | D34: 331 | E34: 178 | F34: 509 | G34: 225 | H34: 734 | I34: 191 | J34: 173 | K34: 364 | L34: 174 | M34: 538
A35: Orkla Financial Investments | B35: 151 | C35: 133 | D35: 284 | E35: 191 | F35: 475 | G35: 155 | H35: 630 | I35: 44 | J35: 38 | K35: 82 | L35: 105 | M35: 187
A36: HQ/Other business/Eliminations | B36: 11 | C36: 7 | D36: 18 | E36: 24 | F36: 42 | G36: 7 | H36: 49 | I36: 12 | J36: 5 | K36: 17 | L36: 8 | M36: 25
A39: Operating profit - EBITA
A40: NOK million | B40: Q1 2013 | C40: Q2 2013 | D40: Ytd Q2 2013 | E40: Q3 2013 | F40: Ytd Q3 2013 | G40: Q4 2013 | H40: Ytd Q4 2013 | I40: Q1 2014 | J40: Q2 2014 | K40: Ytd Q2 2014 | L40: Q3 2014 | M40: Ytd Q3 2014
A41: Orkla Group | B41: =B42+SUM(B48:B50) -> 511 | C41: =D41-B41 -> 548 | D41: =D42+SUM(D48:D50) -> 1059 | E41: =F41-D41 -> 819 | F41: =F42+SUM(F48:F50) -> 1878 | G41: =H41-F41 -> 948 | H41: =H42+SUM(H48:H50) -> 2826 | I41: =I42+SUM(I48:I50) -> 619 | J41: =K41-I41 -> 633 | K41: =K42+SUM(K48:K50) -> 1252 | L41: =M41-K41 -> 860 | M41: =M42+SUM(M48:M50) -> 2112
A42: Branded Consumer Goods | B42: =SUM(B43:B47) -> 579 | C42: 584 | D42: =SUM(D43:D47) -> 1163 | E42: 868 | F42: 2031 | G42: 951 | H42: 2982 | I42: 655 | J42: 704 | K42: 1359 | L42: 903 | M42: 2262
A43: Orkla Foods | B43: 226 | C43: 263 | D43: 489 | E43: 364 | F43: 853 | G43: 422 | H43: 1275 | I43: 295 | J43: 333 | K43: 628 | L43: 343 | M43: 971
A44: Orkla Confectionery & Snacks | B44: 144 | C44: 119 | D44: 263 | E44: 185 | F44: 448 | G44: 234 | H44: 682 | I44: 116 | J44: 109 | K44: 225 | L44: 215 | M44: 440
A45: Orkla Home & Personal | B45: 214 | C45: 165 | D45: 379 | E45: 250 | F45: 629 | G45: 194 | H45: 823 | I45: 230 | J45: 176 | K45: 406 | L45: 257 | M45: 663
A46: Orkla International | B46: -42 | C46: -40 | D46: -82 | E46: -8 | F46: -90 | G46: 4 | H46: -86 | I46: -28 | J46: -14 | K46: -42 | L46: -5 | M46: -47
A47: Orkla Food Ingredients | B47: 37 | C47: 77 | D47: 114 | E47: 77 | F47: 191 | G47: 97 | H47: 288 | I47: 42 | J47: 100 | K47: 142 | L47: 93 | M47: 235
A48: Hydro Power | B48: -3 | C48: 77 | D48: 74 | E48: 42 | F48: 116 | G48: 97 | H48: 213 | I48: 58 | J48: 39 | K48: 97 | L48: 46 | M48: 143
A49: Orkla Financial Investments | B49: 8 | C49: -3 | D49: 5 | E49: 1 | F49: 6 | G49: -9 | H49: -3 | I49: -11 | J49: 0 | K49: -11 | L49: -5 | M49: -16
A50: HQ/ Other business | B50: -73 | C50: -110 | D50: -183 | E50: -92 | F50: -275 | G50: -91 | H50: -366 | I50: -83 | J50: -110 | K50: -193 | L50: -84 | M50: -277

Sheet EBIT
B3: EBITA
C4: 1.1-30.9 | D4: 1.1-30.9 | F4: 1.7-30.9 | G4: 1.7-30.9
B5: Amounts in NOK million | C5: 2014 | D5: 2013 | F5: 2014 | G5: 2013
B7: Branded Consumer Goods | C7: 2262 | D7: 2031 | F7: 903 | G7: 868
B8: Other businesses and HQ/other | C8: =C9-C7 -> -150 | D8: =D9-D7 -> -153 | F8: =F9-F7 -> -43 | G8: -49
B9: Orkla Group | C9: 2112 | D9: 1878 | F9: 860 | G9: 819
B12: Amortisation
C13: =C4 -> 1.1-30.9 | D13: =D4 -> 1.1-30.9 | F13: 1.7-30.9 | G13: 1.7-30.9
B14: Amounts in NOK million | C14: 2014 | D14: 2013 | F14: 2014 | G14: 2013
B15: Branded Consumer Goods | C15: -15 | D15: -14 | F15: -6 | G15: -4
B16: Other businesses and HQ/other | C16: =C17-C15 -> 0 | D16: =D17-D15 -> 0 | F16: =F17-F15 -> 0 | G16: =G17-G15 -> 0
B17: Orkla Group | C17: -15 | D17: -14 | F17: -6 | G17: -4
B20: Other income and expenses
C21: =C4 -> 1.1-30.9 | D21: =D4 -> 1.1-30.9 | F21: 1.7-30.9 | G21: 1.7-30.9
B22: Amounts in NOK million | C22: 2014 | D22: 2013 | F22: 2014 | G22: 2013
B23: Branded Consumer Goods | C23: =-138-31-21-25 -> -215 | D23: =-211-30-10-436-6 -> -693 | F23: =-21-16-10+2 -> -45 | G23: =-99-19-2-1-2 -> -123
B24: Other businesses and HQ/other | C24: =C25-C23 -> 208 | D24: =D25-D23 -> -87 | F24: -2 | G24: -70
B25: Orkla Group | C25: -7 | D25: -780 | F25: -47 | G25: -193
B28: EBIT | C28: =C4 -> 1.1-30.9 | D28: =D4 -> 1.1-30.9 | F28: 1.7-30.9 | G28: 1.7-30.9
B29: Amounts in NOK million | C29: 2014 | D29: 2013 | F29: 2014 | G29: 2013
B30: Branded Consumer Goods | C30: =C7+C15+C23 -> 2032 | D30: 1324 | F30: =F7+F15+F23 -> 852 | G30: 741
B31: Other businesses and HQ/other | C31: 58 | D31: -240 | F31: -45 | G31: -119
B32: Orkla Group | C32: 2090 | D32: 1084 | F32: 807 | G32: 622

Sheet Cash flow
B3: Cash Flow Statement Orkla Group
C5: 1.1-30.9 | D5: 1.1-30.9 | F5: 1.7-30.9 | G5: 1.7-30.9
B6: Amounts in NOK million | C6: 2014 | D6: 2013 | F6: 2014 | G6: 2013
B8: Operating profit | C8: 2138 | D8: 1292 | F8: 813 | G8: 698
B9: Amortisation, depreciation and write-downs | C9: 737 | D9: 1235 | F9: 237 | G9: 350
B10: Change in net working capital | C10: -922 | D10: -760 | F10: -301 | G10: -278
B11: Cash flow from operating act. bef. net replacement exp. | C11: =SUM(C8:C10) -> 1953 | D11: =SUM(D8:D10) -> 1767 | F11: =SUM(F8:F10) -> 749 | G11: =SUM(G8:G10) -> 770
B12: Net replacement expenditures | C12: -606 | D12: -566 | F12: -196 | G12: -229
B13: Cash flow from operations, industrial activities | C13: =SUM(C11:C12) -> 1347 | D13: =SUM(D11:D12) -> 1201 | F13: =SUM(F11:F12) -> 553 | G13: =SUM(G11:G12) -> 541
B14: Cash flow from operations, Orkla Financial Investments | C14: 45 | D14: 64 | F14: -8 | G14: 20
B15: Financial items paid | C15: -246 | D15: -333 | F15: -73 | G15: -116
B16: Taxes paid | C16: -355 | D16: -472 | F16: -81 | G16: -92
B17: Dividends received | C17: 267 | D17: 486 | F17: 122 | G17: 137
B18: Discontinued operations and other payments | C18: 538 | D18: -347 | F18: -77 | G18: -153
B19: Cash flow before capital transactions | C19: =SUM(C13:C18) -> 1596 | D19: =SUM(D13:D18) -> 599 | F19: =SUM(F13:F18) -> 436 | G19: =SUM(G13:G18) -> 337
B20: Dividends paid | C20: -2545 | D20: -2571 | F20: -1 | G20: -2
B21: Net sale/purchase of Orkla shares | C21: 200 | D21: 83 | F21: 68 | G21: 8
B22: Cash flow before expansion | C22: =SUM(C19:C21) -> -749 | D22: =SUM(D19:D21) -> -1889 | F22: =SUM(F19:F21) -> 503 | G22: =SUM(G19:G21) -> 343
B23: Expansion investments | C23: -68 | D23: -115 | F23: -31 | G23: -45
B24: Sold companies/share of companies | C24: 549 | D24: 1688 | F24: 185 | G24: 1641
B25: Acquired companies/share of companies | C25: -50 | D25: -6935 | F25: -36 | G25: 0
B26: Net purchases/sales portfolio investments | C26: 204 | D26: 2944 | F26: 80 | G26: 168
B27: Net cash flow | C27: =SUM(C22:C26) -> -114 | D27: =SUM(D22:D26) -> -4307 | F27: =SUM(F22:F26) -> 701 | G27: =SUM(G22:G26) -> 2107
B28: Currency translations net interest-bearing liabilities | C28: 281 | D28: -809 | F28: 220 | G28: -250
B29: Change in net interest-bearing liabilities | C29: -167 | D29: 5116 | F29: -921 | G29: -1857
B30: Net interest-bearing liabilities | C30: 8329 | D30: 9902

Sheet Balance sheet
B3: Group Balance Sheet
C4: 2014-09-30 | D4: 2014-12-31
B5: Amounts in NOK million | C5: 2014 | D5: 2013
B7: Assets:
B8: Intangible assets | C8: 13782 | D8: 15402
B9: Property, plant and equipment | C9: 9548 | D9: 11651
B10: Investments in associates and joint ventures and other financial investments | C10: 11333 | D10: 11042
B11: Non-current assets | C11: =SUM(C8:C10) -> 34663 | D11: =SUM(D8:D10) -> 38095
B12: Assets in discontinued operations | C12: 4337 | D12: 0
B13: Inventories | C13: 4194 | D13: 4836
B14: Receivables | C14: 5378 | D14: 6328
B15: Shares and financial assets | C15: 826 | D15: 1051
B16: Cash and cash equivalents | C16: 1653 | D16: 1805
B17: Current assets | C17: =SUM(C12:C16) -> 16388 | D17: =SUM(D12:D16) -> 14020
B18: Total assets | C18: =C11+C17 -> 51051 | D18: =D11+D17 -> 52115
B19: Equity and debt:
B20: Paid-in equity | C20: 1995 | D20: 1989
B21: Earned equity | C21: 27488 | D21: 28490
B22: Non-controlling interests | C22: 366 | D22: 301
B23: Equity | C23: =SUM(C20:C22) -> 29849 | D23: =SUM(D20:D22) -> 30780
B24: Provisions | C24: 3379 | D24: 3369
B25: Non-current interest-bearing liabilities | C25: 9411 | D25: 8041
B26: Current interest-bearing liabilities | C26: 990 | D26: 2837
B27: Liabilities in discontinued operations | C27: 1641 | D27: 0
B28: Other current liabilities | C28: 5781 | D28: 7088
B29: Equity and liabilities | C29: =SUM(C23:C28) -> 51051 | D29: =SUM(D23:D28) -> 52115
B31: Equity ratio (%): | C31: =C23/C29 -> 0.58468982 | D31: =D23/D29 -> 0.5906169049
